Cogmind - Beta 15 @@@ ROGUE MODE // 2025.07.26 @ 17:33:24 Player: VR-DUX Result: Destroyed by G-34 Mercenary with Small Laser Performance ------------- Evolutions (0) 0 Regions Visited (2) 400 Robots Destroyed (24) 120 Value Destroyed (478) 478 Prototype IDs (0) 0 Alien Tech Used (0) 0 Bonus (50) 50 TOTAL SCORE: 1048 Bonus ------- Follower Combat Kills 50 Cogmind --------- Core Integrity 0/250 Matter 258/300 Energy 265/265 System Corruption 0% Temperature Warning (308) Movement Treading (320) Ox2 Location -10/Mines Parts ------- > --- POWER (1) -------- Improved Ion Engine > --- PROPULSION (2) --- Light Treads > --- UTILITY (2) ------ High-capacity Storage Unit Improved Terrain Scanner > --- WEAPON (2) ------- Medium Laser Light Assault Rifle > --- INVENTORY (20) --- Light Treads Wheel Wheel Flight Unit Medium Storage Unit Large Storage Unit Medium Matter Pod (100) Structural Scanner Sensor Array Sensor Array Signal Interpreter EM Pulse Gun EM Pulse Gun Medium Laser Small Laser Light Assault Rifle Hammer Mining Claw Peak State ------------ > --- POWER ------------ Improved Ion Engine > --- PROPULSION ------- Light Treads Light Treads > --- UTILITY ---------- High-capacity Storage Unit Improved Terrain Scanner > --- WEAPON ----------- Medium Laser Mining Claw > --- INVENTORY -------- Light Treads Wheel Flight Unit Medium Storage Unit Large Storage Unit Medium Matter Pod Structural Scanner Sensor Array Sensor Array Signal Interpreter EM Pulse Gun EM Pulse Gun Medium Laser Small Laser Light Assault Rifle Light Assault Rifle Hammer [Rating: 11] Favorites ----------- Power Light Ion Engine Engine Light Ion Engine Power Core Light Nuclear Core Propulsion Light Treads Treads Light Treads Leg Aluminum Leg Wheel Wheel Utility Seismic Detector Device Seismic Detector Storage High-capacity Storage Unit Weapon Medium Laser Energy Gun Medium Laser Ballistic Gun Assault Rifle Special Weapon Mining Laser Slashing Weapon Mining Claw Build | -11 -10 -10 ------- Run | Yrd Mat Min Slots Evolved . | . . . Power . | . . . Propulsion . | . . . Utility . | . . . Weapon . | . . . Parts Attached 22 | 3 9 10 Power 4 | . 1 3 Engine 3 | . 1 2 Core 1 | . . 1 Reactor . | . . . Propulsion 5 | 2 1 2 Treads 4 | 1 1 2 Leg . | . . . Wheel 1 | 1 . . Hover . | . . . Flight . | . . . Utility 5 | 1 2 2 Device 3 | 1 . 2 Storage 2 | . 2 . Processor . | . . . Hackware . | . . . Protection . | . . . Artifact . | . . . Weapon 8 | . 5 3 Energy Gun 3 | . 1 2 Energy Cannon . | . . . Ballistic Gun 3 | . 2 1 Ballistic Cannon . | . . . Launcher . | . . . Special Weapon 1 | . 1 . Impact Weapon . | . . . Slashing Weapon 1 | . 1 . Piercing Weapon . | . . . Special Melee Weapon . | . . . Unidentified Prototypes . | . . . Parts Lost 9 | . 1 8 Power 3 | . . 3 Propulsion 3 | . . 3 Utility 1 | . . 1 Weapon 2 | . 1 1 Highest Loss Streak 6 | . 1 6 To Critical Strikes . | . . . Average Backups 14 | 4 13 18 Power 1 | 1 1 . Propulsion 1 | 2 1 2 Utility 5 | . 4 6 Weapon 6 | 1 6 8 Tool/Special . | . . . Unused Backups 14 | . 2 12 Power . | . . . Propulsion 3 | . . 3 Utility 7 | . 2 5 Weapon 4 | . . 4 Tool/Special . | . . . Average Slot Usage (%) 96 | . 99 90 Engine 12 | . 14 10 Treads 24 | . 24 24 Wheel 2 | . 3 1 Device 12 | . 14 10 Storage 14 | . 14 14 Energy Gun 14 | . 12 16 Ballistic Gun 9 | . 11 5 Slashing Weapon 2 | . 2 2 Peak Build Rating 11 | 7 9 11 Average Rating 8 | 6 8 9 On Entrance 7 | 6 7 9 Naked Turns . | . . . Heaviest Build 52 | 12 48 52 Greatest Support 40 | 20 40 40 Greatest Overweight (x) 15 | 1 2 15 Average Overweight (x) 1 | . . 1 Largest Inventory Capacity 20 | 8 20 20 Average Capacity 17 | 8 16 20 Most Carried 20 | 6 19 20 Average Carried 14 | 4 13 18 Final Capacity 20 | 8 20 20 Final Carried 18 | 4 18 18 Class Distribution -------------------- 91% | Mutant 8% | Scavenger-Mutant Dominant Class ---------------- Mutant | -10/Materials Mutant | -10/Mines Resources | -11 -10 -10 ----------- Run | Yrd Mat Min Matter Collected 733 | 229 381 123 Remotely . | . . . Salvage Created 879 | 94 545 240 Parts 57 | 5 36 16 Haulers Intercepted 2 | . 2 . Recyclers Shooed 5 | . 1 4 Parts Field Recycled . | . . . Retrieved Matter . | . . . Parts Self-Destructed . | . . . Prevented . | . . . Kills | -11 -10 -10 ------- Run | Yrd Mat Min Combat Hostiles Destroyed 17 | . 10 7 Guns 17 | . 10 7 Classes Destroyed 10 | 2 6 2 Worker 2 | . 1 1 Builder 2 | . 1 1 Tunneler 1 | 1 . . Hauler 2 | . 2 . Recycler 2 | 1 1 . Swarmer 6 | . 4 2 Grunt 6 | . 5 1 Sentry 2 | . . 2 Subdweller 1 | . 1 . Assembled 2 | . . 2 Best Kill Streak 4 | 1 4 2 Combat Bots Only 3 | . 3 2 Max Kills in Single Turn 1 | 1 1 1 Gunslinging . | . . . Exploded . | . . . Melee . | . . . Uniques/NPCs Destroyed . | . . . Combat | -11 -10 -10 -------- Run | Yrd Mat Min Hostile Shots Fired 144 | . 65 79 Missed 42 | . 26 16 Hits 102 | . 39 63 Melee 3 | . . 3 Projectile 99 | . 39 60 Critical Strikes 3 | . 2 1 Damage Taken 1377 | . 495 882 Core 260 | . 73 187 Absorbed by Shields . | . . . Regen/Repaired (Parts) 61 | . 61 . Core Remaining (%) 100 | 100 . . Volleys Fired 128 | 5 76 47 Largest 2 | 2 2 2 Hottest 100 | 40 100 100 Shots Fired 229 | 10 139 80 Gun 227 | 10 137 80 Cannon . | . . . Launcher . | . . . Special 2 | . 2 . Kinetic 99 | 10 71 18 Thermal 130 | . 68 62 Explosive . | . . . Electromagnetic . | . . . Robot Hit Streak 11 | 3 10 11 Robot Miss Streak 3 | 1 3 3 Penetration Max . | . . . Secondary Targets 3 | . 2 1 Max Gunslinging Chain 1 | . 1 1 Shots Hit Robots 145 | 7 82 56 Core Hits 50 | 3 30 17 Critical Kills . | . . . Critical Parts Destroyed . | . . . Critical Strikes 7 | . 3 4 Burn 7 | . 3 4 Melee Attacks 22 | . 13 9 Impact . | . . . Slashing 22 | . 13 9 Piercing . | . . . Sneak Attacks . | . . . Combat Hostiles . | . . . Follow-up Attacks . | . . . Damage Inflicted 1702 | 78 994 630 Guns 1702 | 78 994 630 Cannons . | . . . Explosions . | . . . Melee . | . . . Ramming . | . . . Kinetic 723 | 78 537 108 Thermal 979 | . 457 522 Explosive . | . . . Electromagnetic . | . . . Impact . | . . . Slashing . | . . . Piercing . | . . . Highest Corruption . | . . . Average Corruption . | . . . Corruption Purged . | . . . Corruption Blocked . | . . . Overload Shots . | . . . Overflow Damage . | . . . Projectiles . | . . . Explosions . | . . . Melee . | . . . Knockbacks . | . . . Impact . | . . . Kinetic . | . . . Secondary . | . . . Self-Inflicted Damage . | . . . Shots . | . . . Rammed . | . . . Targets Rammed . | . . . Kicked . | . . . Crushed . | . . . Highest Temperature 302 | . 159 302 Average Temperature 54 | . 39 74 Received Heat Transfer 503 | . 234 269 Siege Activations . | . . . Martial Activations . | . . . Shielding Activations . | . . . Robots Disrupted . | . . . Combat Hostiles . | . . . Robots Corrupted . | . . . Combat Hostiles . | . . . Parts Fried . | . . . Impact Corruptions . | . . . Robots Melted . | . . . Combat Hostiles . | . . . Parts Melted 4 | . 2 2 Heat Transferred 3404 | . 1591 1813 Parts Sabotaged . | . . . Parts Stolen . | . . . Parts Stripped . | . . . Power Chain Reactions . | . . . Alert | -11 -10 -10 ------- Run | Yrd Mat Min Maximum Alert Level . | . . . Low Security (%) 100 | 100 100 100 Level 1 . | . . . Level 2 . | . . . Level 3 . | . . . Level 4 . | . . . Level 5 . | . . . High Security . | . . . Max Security . | . . . Peak Influence 101 | 5 101 65 Initial . | . . . Average 17 | 1 21 10 Influence Increases 543 | 10 326 207 Destroy 0b10 Robot/C 320 | . 180 140 Destroy 0b10 Robot/NC 45 | 10 25 10 Destroy Leader 54 | . 44 10 Allied During Kill 2 | . . 2 Successful Hack 24 | . 24 . Disable Machine 15 | . 15 . Destroy Structure 8 | . 8 . Lose Combat Pursuer 75 | . 30 45 Influence Decreases 519 | 10 326 183 Time Decay 469 | 10 326 133 Lost Part 30 | . . 30 Lost Ally 20 | . . 20 Squads Dispatched . | . . . Investigation . | . . . Extermination . | . . . Reinforcement . | . . . Assault . | . . . Garrison . | . . . Intercept . | . . . Searches Triggered . | . . . Construction Impeded . | . . . Haulers Reinforced . | . . . Active Scanning Responses . | . . . Cargo Convoy Interrupts . | . . . Stealth | -11 -10 -10 --------- Run | Yrd Mat Min Distress Signals 5 | . 5 . Communications Jammed . | . . . Distress Signals . | . . . Times Spotted 33 | . 22 11 Peak Tracking Total 5 | . 5 4 Tactical Retreats 6 | . 2 4 Traps | -11 -10 -10 ------- Run | Yrd Mat Min Traps Triggered . | . . . Indirectly . | . . . Trap Hack Attempts . | . . . Triggered . | . . . Disarmed . | . . . Reprogrammed . | . . . Reused . | . . . Traps Extracted . | . . . Installed . | . . . Triggered . | . . . Machines | -11 -10 -10 ---------- Run | Yrd Mat Min Machines Disabled 1 | . 1 . Max in Single Turn 1 | . 1 . Machines Repaired . | . . . Machines Dismantled . | . . . Machines Sabotaged . | . . . Overloaded Fab Kills . | . . . Hacking | -11 -10 -10 --------- Run | Yrd Mat Min Machines Accessed 9 | . 9 . Terminals 6 | . 6 . Fabricators . | . . . Repair Stations 1 | . 1 . Recycling Units 2 | . 2 . Scanalyzers . | . . . Garrison Access . | . . . Total Hacks 19 | . 19 . Successful 9 | . 9 . Failed 10 | . 10 . Catastrophic 3 | . 3 . Database Lockouts . | . . . Manual 17 | . 17 . Terminals 14 | . 14 . Fabricators . | . . . Repair Stations 2 | . 2 . Recycling Units 3 | . 3 . Scanalyzers . | . . . Garrison Access . | . . . Terminal Hacks 4 | . 4 . Record 1 | . 1 . Robot Analysis 2 | . 2 . Branch Access Points 1 | . 1 . Fabricator Hacks . | . . . Repair Station Hacks 2 | . 2 . Scan Component 1 | . 1 . Repair 1 | . 1 . Recycling Unit Hacks 1 | . 1 . Retrieve Components 1 | . 1 . Scanalyzer . | . . . Garrison Access Hacks . | . . . Unauthorized Hacks 2 | . 2 . Terminals 1 | . 1 . Botnet 1 | . 1 . Fabricators . | . . . Repair Stations . | . . . Recycling Units 1 | . 1 . Reject 1 | . 1 . Scanalyzers . | . . . Garrison Access . | . . . Data Cores Recovered . | . . . Used . | . . . Hacking Detections 6 | . 6 . Full Trace Events 1 | . 1 . Feedback Events . | . . . Feedback Blocked . | . . . Robot Schematics Acquired . | . . . Robots Built . | . . . Authchips . | . . . Time . | . . . Total Robot Build Rating . | . . . Part Schematics Acquired . | . . . Parts Built . | . . . Authchips . | . . . Time . | . . . Total Part Build Rating . | . . . Parts Repaired 1 | . 1 . Time 26 | . 26 . Parts Recycled . | . . . Recycled Matter . | . . . Retrieved Matter . | . . . Retrieved Components 7 | . 7 . Parts Scanalyzed . | . . . Part Schematics Acquired . | . . . Parts Damaged . | . . . Bothacking | -11 -10 -10 ------------ Run | Yrd Mat Min Used RIF Installer . | . . . Robots Hacked . | . . . Non-combat . | . . . Combat . | . . . Robot Hacks Applied . | . . . Relay Couplers Released . | . . . Fabnet Peak Effective % . | . . . Robots Rewired . | . . . Allies Hacked . | . . . Hacks Repelled . | . . . Allies | -11 -10 -10 -------- Run | Yrd Mat Min Total Allies 1 | . . 1 Largest Group 1 | . . 1 Highest-Rated Group 31 | . . 31 Highest-Rated Ally 31 | . . 31 Total Orders . | . . . Ally Attacks 11 | . . 11 Total Damage 126 | . . 126 Kills 3 | . . 3 Allies Corrupted . | . . . Allies Melted . | . . . Intel | -11 -10 -10 ------- Run | Yrd Mat Min Active Infowar (turns) 2132 | 7 1559 566 Terrain 213 | . . 213 Structural 77 | . . 77 Seismic 1842 | 7 1559 276 Robot Analysis Total 2 | . 2 . Derelict Logs Recovered 2 | . . 2 Drone Launches . | . . . Drone Recoveries . | . . . Exploration | -11 -10 -10 ------------- Run | Yrd Mat Min Turns Passed 2372 | 65 1559 748 Spaces Moved 1055 | 44 774 237 Core 2 | . . 2 Treads 693 | . 503 190 Legs 16 | 16 . . Wheels 344 | 28 271 45 Hover . | . . . Flight . | . . . Fastest Speed 95 | 95 95 155 Average Speed 172 | 104 159 229 Slowest Speed 800 | 120 240 800 Overloaded Moves . | . . . Propulsion Burnouts . | . . . Robots Hopped . | . . . Potential Cave-ins . | . . . Cave-ins Triggered . | . . . Exploration Rate (%) 48 | 5 82 57 Regions Visited 2 Branch Regions 1 Pre-discovered Areas . | . . . Known Exits Taken 1 | . 1 . Unknown Exits Taken 1 | 1 . . Scrap Searched 1 | . . 1 Spaces Dug 7 | . 7 . Terrain Destroyed 7 | . 7 . Melee 5 | . 5 . Projectile 2 | . 2 . AOE . | . . . Terrain Rammed . | . . . Walls Destroyed . | . . . Machines Disabled . | . . . Actions | -11 -10 -10 --------- Run | Yrd Mat Min Total 1326 | 55 928 343 Wait 58 | . 32 26 Move 1053 | 43 773 237 Hop . | . . . Pick Up 23 | 1 16 6 Fast Attach 5 | 1 2 2 Attach 9 | 2 1 6 Detach . | . . . Swap 19 | . 11 8 Drop 8 | 3 4 1 Fire 128 | 5 76 47 Melee 22 | . 13 9 Ram . | . . . Kick . | . . . Crush . | . . . Escape Stasis . | . . . Rewire 1 | . . 1 Trap . | . . . Miscellaneous . | . . . Route ------- -11/Scrapyard -10/Materials (discovered 4 exits: [*Mat x3] / *Min) -10/Mines History --------- Turn | Location | Event 10 | -11/Scrapyard | Discovered new exit (range 3) 66 | -11/Scrapyard | Entered Materials 200 | -10/Materials | Discovered new exit (range 4) 273 | -10/Materials | Discovered new exit (range 7) 318 | -10/Materials | Build established: Mutant 468 | -10/Materials | Repaired Med. Laser 593 | -10/Materials | Discovered new exit (range 11) 694 | -10/Materials | Identified exit to Mines 1166 | -10/Materials | Derelicts attacked the area 1625 | -10/Materials | Entered Mines 1682 | -10/Mines | Learned Materials terminal intel 1890 | -10/Mines | Core integrity fell below 50% 1935 | -10/Mines | Lost 6 parts (2p2n1u1w) 2031 | -10/Mines | Received a Mining Laser from a helpful Derelict 2058 | -10/Mines | Excavation squad dispatched 2058 | -10/Mines | A large section of the Mines collapsed 2068 | -10/Mines | Core integrity fell below 20% 2308 | -10/Mines | Excavation squad dispatched 2310 | -10/Mines | Learned Materials emergency access door positions 2373 | -10/Mines | Destroyed by G-34 Mercenary with Small Laser Last Messages --------------- 02303_ Destroyed Tractor Beam. 02307_ Searching scrap... 02307_ Found EM Pulse Gun. 02307_ Found Med. Laser. 02307_ Found 39 Matter. 02308_ ALERT: Derelict activity in mines confirmed. Dispatching additional escorted excavation squad. 02310_ Acquired derelict log, extracted data. Data stored: Materials emergency access points. 02323_ K-01 Serf destroyed. 02328_ R-06 Scavenger collects Wheel. 02356_ G-34 Mercenary heat damages Aluminum Leg, Ion Engine. 02357_ Destroyed Ion Engine. 02357_ G-34 Mercenary overheating. 02363_ G-34 Mercenary destroyed. 02367_ Lgt. Treads destroyed. 02368_ G-34 Mercenary suffers critical hit (Burn). Map ----- +----------------------------------------------------+ | | | | | | | | | | | | | | | | | ?????#??????????????????????????????? | | ???????#????????????????????????????? | | ?#????????#?????#???????????????????? | | ####?#???????? ??????#??????????????? | | # ?????????????"?? ????#??????????? | | # "?????????????"??????????????????? | | # ""?????? ?????" ?????????????????# | | # """ """???#?? ???????????###???? | | # ??#? """ ?????#????# ##??? | | # """ """???? """ ?????????# #??? | | # """ ""??????""" ??????### ##?? | | # """ ????????? ?????## ??#? | | # ? ???? ????# ???#?# ????? | | ?# #?????#??????# ###??# ?????? | | ?# #????#??###### #??# #????#?? | | ## #??####### ## #??# #???????? | | #?## #?# #??# #???????? | | ## ### ### #??#@ #????????? | | ## ## """ [% #?###g#????????? | | ?# ## """ ####[ #####=#????????? | | ?# ## """ ##??# =% #????????? | | ?# ##???# #######????#???? | | ?######### ##???## #????????#??#??? | | ?#???????#####???# #?????#?#??????? | | ????????????????# #???#??????????# | | ?#??#??#???#????# #??????????#???? | | ?#??#???#??????? #????????#?????? | | ??????????????? #??????????????? | | ????????#????? """ ###???????????#?# | | ?????????#?? """ ????????????????? | | ?#??????????# """ ???????##???????? | | ?? ????????? ???? ????????????????? | | ???????????? ???? ????????????????? | | ?????????????????? ????????#?????#?? | | ???????#?????????? ????????????????? | | ???????#????????????????????#???????? | | ???????????#????????????????????????? | | ????????????????????????????????????? | | ????????????????????????????????????? | | ????????????????????????????????????? | | ????????????????????????????????????? | | ????????????????????????????????????? | +----------------------------------------------------+ Best States ------------- Heat Dissipation 25 Energy Generation 14 Energy Capacity 265 Matter Stores 300 Matter Capacity 300 Sight Range 16 Terrain Scan Range 16 Terrain Scan Density 10 Evasion (%) 55 Recoil Reduction 2 Item Schematics ----------------- None Robot Schematics ------------------ None Fabricated ------------ Nothing Repaired ---------- Med. Laser | 12% | -10/Materials Alien Tech Used ----------------- None Achievements -------------- None Challenges ------------ None Game ------ Seed GrapheneSuperdenseCycler Manual? 0 Play Time 00:25:47 Cumulative 52.8 hours Start 2025.07.26 @ 17:10:12 End 2025.07.26 @ 17:33:24 Sessions 1 Manual Loads 0 Difficulty Rogue Special Mode None Game No. 22 Rogue 22 Adventurer 0 Explorer 0 Win Type - Total 3 Types 2/0/1/0/0/0/0/0/0/0 Lore% 47 Gallery% 24 Achievement% 37 Wizard Run 0 Options --------- Layout 1 ASCII 0 Keyboard 0 Movement Mouse Keybinds 0 Fullscreen 1 Font 24/Smallcaps Map View 50x35 Zoom Use 0% Tactical HUD 1 Map Filters NONE Filters NONE Steam 1 RUN: 3c6bb225-9cb9-4eb8-96d0-8bc247f49da8